[Event "Titled Tuesday Blitz June 28 Late 2022"]
[White "Xie, Bryan"]
[Black "Krishnan, Varun"]
[WhiteFideId "30941296"]
[BlackFideId "5054508"]
[WhiteElo "1899"]
[BlackElo "2548"]
[Result "1/2-1/2"]
[Round "02"]
[TimeControl "180+1"]
[Date "2022.06.29"]
[WhiteClock "0:00:09"]
[BlackClock "0:00:12"]

1. d4 {[%clk 0:02:58]}  Nf6 {[%clk 0:02:57]} 2. Nf3 {[%clk 0:02:54]}  e6 {[%clk 0:02:57]} 3. Bf4 {[%clk 0:02:52]}  b6 {[%clk 0:02:56]} 4. e3 {[%clk 0:02:50]}  Bb7 {[%clk 0:02:56]} 5. Be2 {[%clk 0:02:46]}  c5 {[%clk 0:02:56]} 6. Nbd2 {[%clk 0:02:41]}  h6 {[%clk 0:02:55]} 7. h3 {[%clk 0:02:38]}  Nc6 {[%clk 0:02:51]} 8. c3 {[%clk 0:02:38]}  d6 {[%clk 0:02:51]} 9. O-O {[%clk 0:02:38]}  Be7 {[%clk 0:02:51]} 10. Bh2 {[%clk 0:02:17]}  O-O {[%clk 0:02:50]} 11. Re1 {[%clk 0:02:17]}  cxd4 {[%clk 0:02:40]} 12. exd4 {[%clk 0:02:07]}  d5 {[%clk 0:02:40]} 13. Ne5 {[%clk 0:01:50]}  Nxe5 {[%clk 0:02:36]} 14. dxe5 {[%clk 0:01:35]}  Ne4 {[%clk 0:02:34]} 15. Nf3 {[%clk 0:01:36]}  f6 {[%clk 0:02:22]} 16. Nd4 {[%clk 0:01:23]}  Bc5 {[%clk 0:02:17]} 17. Nxe6 {[%clk 0:01:10]}  Nxf2 {[%clk 0:02:15]} 18. Qc2 {[%clk 0:00:43]}  Nxh3+ {[%clk 0:02:08]} 19. Kh1 {[%clk 0:00:17]}  Nf2+ {[%clk 0:02:08]} 20. Kg1 {[%clk 0:00:17]}  Qe7 {[%clk 0:01:44]} 21. Nxf8 {[%clk 0:00:11]}  Rxf8 {[%clk 0:01:41]} 22. b4 {[%clk 0:00:11]}  Nh3+ {[%clk 0:01:31]} 23. Kh1 {[%clk 0:00:11]}  Nf2+ {[%clk 0:01:30]} 24. Kg1 {[%clk 0:00:11]}  Be3 {[%clk 0:01:27]} 25. Bf3 {[%clk 0:00:05]}  Ng4+ {[%clk 0:01:13]} 26. Kh1 {[%clk 0:00:05]}  Nf2+ {[%clk 0:01:11]} 27. Kg1 {[%clk 0:00:05]}  d4 {[%clk 0:01:00]} 28. cxd4 {[%clk 0:00:05]}  Bxd4 {[%clk 0:00:53]} 29. Qc4+ {[%clk 0:00:05]}  Kh8 {[%clk 0:00:37]} 30. Qxd4 {[%clk 0:00:05]}  Bxf3 {[%clk 0:00:37]} 31. gxf3 {[%clk 0:00:04]}  Nh3+ {[%clk 0:00:30]} 32. Kg2 {[%clk 0:00:04]}  fxe5 {[%clk 0:00:24]} 33. Qxe5 {[%clk 0:00:03]}  Qd7 {[%clk 0:00:20]} 34. Qe6 {[%clk 0:00:03]}  Qd2+ {[%clk 0:00:10]} 35. Re2 {[%clk 0:00:04]}  Qg5+ {[%clk 0:00:08]} 36. Qg4 {[%clk 0:00:04]}  Qf6 {[%clk 0:00:06]} 37. Qxh3 {[%clk 0:00:04]}  Qxa1 {[%clk 0:00:06]} 38. Qg3 {[%clk 0:00:03]}  Qf6 {[%clk 0:00:06]} 39. Qe5 {[%clk 0:00:03]}  Qg6+ {[%clk 0:00:06]} 40. Kf2 {[%clk 0:00:03]}  Qd3 {[%clk 0:00:07]} 41. Re3 {[%clk 0:00:03]}  Qd2+ {[%clk 0:00:07]} 42. Re2 {[%clk 0:00:04]}  Qd3 {[%clk 0:00:07]} 43. Qe4 {[%clk 0:00:04]}  Qd7 {[%clk 0:00:07]} 44. Be5 {[%clk 0:00:04]}  Qh3 {[%clk 0:00:07]} 45. Ke3 {[%clk 0:00:02]}  Qh1 {[%clk 0:00:06]} 46. Qg4 {[%clk 0:00:03]}  Rg8 {[%clk 0:00:05]} 47. Ke4 {[%clk 0:00:02]}  Qb1+ {[%clk 0:00:05]} 48. Kf4 {[%clk 0:00:02]}  Qc1+ {[%clk 0:00:05]} 49. Kg3 {[%clk 0:00:03]}  Qc6 {[%clk 0:00:05]} 50. f4 {[%clk 0:00:03]}  Qc4 {[%clk 0:00:04]} 51. Re3 {[%clk 0:00:03]}  Qf1 {[%clk 0:00:04]} 52. f5 {[%clk 0:00:02]}  Qg1+ {[%clk 0:00:04]} 53. Kf3 {[%clk 0:00:02]}  Qd1+ {[%clk 0:00:04]} 54. Kg3 {[%clk 0:00:03]}  Qg1+ {[%clk 0:00:04]} 55. Kf4 {[%clk 0:00:03]}  Qf2+ {[%clk 0:00:05]} 56. Qf3 {[%clk 0:00:03]}  Qh2+ {[%clk 0:00:05]} 57. Qg3 {[%clk 0:00:03]}  Qd2 {[%clk 0:00:05]} 58. f6 {[%clk 0:00:03]}  gxf6 {[%clk 0:00:04]} 59. Bxf6+ {[%clk 0:00:04]}  Kh7 {[%clk 0:00:05]} 60. Qf3 {[%clk 0:00:03]}  Qh2+ {[%clk 0:00:05]} 61. Ke4 {[%clk 0:00:03]}  Re8+ {[%clk 0:00:05]} 62. Kd3 {[%clk 0:00:02]}  Qd6+ {[%clk 0:00:05]} 63. Ke2 {[%clk 0:00:03]}  Qh2+ {[%clk 0:00:05]} 64. Kd3 {[%clk 0:00:03]}  Qd6+ {[%clk 0:00:05]} 65. Bd4 {[%clk 0:00:03]}  Qg6+ {[%clk 0:00:05]} 66. Re4 {[%clk 0:00:02]}  Re7 {[%clk 0:00:05]} 67. Ke3 {[%clk 0:00:03]}  Rf7 {[%clk 0:00:04]} 68. Qe2 {[%clk 0:00:02]}  Qg1+ {[%clk 0:00:04]} 69. Kd3 {[%clk 0:00:02]}  Qb1+ {[%clk 0:00:05]} 70. Qc2 {[%clk 0:00:02]}  Qf1+ {[%clk 0:00:04]} 71. Kc3 {[%clk 0:00:02]}  Rf3+ {[%clk 0:00:04]} 72. Re3+ {[%clk 0:00:02]}  Kg8 {[%clk 0:00:03]} 73. Rxf3 {[%clk 0:00:03]}  Qxf3+ {[%clk 0:00:04]} 74. Kb2 {[%clk 0:00:03]}  Qf7 {[%clk 0:00:04]} 75. Qb3 {[%clk 0:00:03]}  Qxb3+ {[%clk 0:00:04]} 76. Kxb3 {[%clk 0:00:03]}  Kf7 {[%clk 0:00:04]} 77. Kc4 {[%clk 0:00:04]}  Ke6 {[%clk 0:00:04]} 78. Kb5 {[%clk 0:00:04]}  Kd5 {[%clk 0:00:04]} 79. Be3 {[%clk 0:00:04]}  a5 {[%clk 0:00:04]} 80. Bxh6 {[%clk 0:00:04]}  axb4 {[%clk 0:00:04]} 81. Kxb4 {[%clk 0:00:02]}  Kc6 {[%clk 0:00:04]} 82. Kc4 {[%clk 0:00:02]}  b5+ {[%clk 0:00:04]} 83. Kb4 {[%clk 0:00:02]}  Kb7 {[%clk 0:00:05]} 84. Be3 {[%clk 0:00:03]}  Ka8 {[%clk 0:00:05]} 85. Kxb5 {[%clk 0:00:04]}  Kb7 {[%clk 0:00:05]} 86. Kc5 {[%clk 0:00:04]}  Ka8 {[%clk 0:00:06]} 87. a4 {[%clk 0:00:05]}  Kb8 {[%clk 0:00:07]} 88. Kb6 {[%clk 0:00:06]}  Ka8 {[%clk 0:00:08]} 89. Ka6 {[%clk 0:00:05]}  Kb8 {[%clk 0:00:08]} 90. Ba7+ {[%clk 0:00:06]}  Ka8 {[%clk 0:00:09]} 91. Bc5 {[%clk 0:00:06]}  Kb8 {[%clk 0:00:09]} 92. Kb6 {[%clk 0:00:07]}  Ka8 {[%clk 0:00:10]} 93. a5 {[%clk 0:00:08]}  Kb8 {[%clk 0:00:11]} 94. a6 {[%clk 0:00:09]}  Ka8 {[%clk 0:00:12]} 95. Kc7 {[%clk 0:00:09]} 1/2-1/2


[Site "https://www.chess.com"]

[Event "Titled Tuesday Blitz June 28 Late 2022"]
[White "Xiong, Jeffery"]
[Black "Jarmula, Lukasz"]
[WhiteFideId "2047640"]
[BlackFideId "1160664"]
[WhiteElo "2714"]
[BlackElo "2246"]
[Result "1-0"]
[Round "02"]
[TimeControl "180+1"]
[Date "2022.06.28"]
[WhiteClock "0:00:41"]
[BlackClock "0:00:19"]

1. d4 {[%clk 0:03:00]}  d5 {[%clk 0:02:58]} 2. Nf3 {[%clk 0:03:01]}  Nf6 {[%clk 0:02:58]} 3. Bf4 {[%clk 0:03:01]}  c5 {[%clk 0:02:55]} 4. e3 {[%clk 0:03:02]}  Nc6 {[%clk 0:02:56]} 5. Nbd2 {[%clk 0:03:02]}  Qb6 {[%clk 0:02:55]} 6. dxc5 {[%clk 0:03:01]}  Qxb2 {[%clk 0:02:55]} 7. Rb1 {[%clk 0:02:58]}  Qc3 {[%clk 0:02:55]} 8. Bb5 {[%clk 0:02:57]}  g6 {[%clk 0:02:55]} 9. O-O {[%clk 0:02:49]}  Bg7 {[%clk 0:02:55]} 10. Nb3 {[%clk 0:02:50]}  O-O {[%clk 0:02:52]} 11. Bxc6 {[%clk 0:02:50]}  bxc6 {[%clk 0:02:50]} 12. Be5 {[%clk 0:02:50]}  Qc4 {[%clk 0:02:50]} 13. Qd4 {[%clk 0:02:50]}  Qxd4 {[%clk 0:02:50]} 14. exd4 {[%clk 0:02:47]}  a5 {[%clk 0:02:50]} 15. Rfe1 {[%clk 0:02:42]}  a4 {[%clk 0:02:48]} 16. Nc1 {[%clk 0:02:42]}  Ne4 {[%clk 0:02:45]} 17. Rb6 {[%clk 0:02:40]}  f6 {[%clk 0:02:34]} 18. Bg3 {[%clk 0:02:40]}  Bd7 {[%clk 0:02:33]} 19. Nd3 {[%clk 0:02:41]}  Rfe8 {[%clk 0:02:22]} 20. Nb4 {[%clk 0:02:38]}  Rac8 {[%clk 0:02:13]} 21. Rb7 {[%clk 0:02:25]}  Bg4 {[%clk 0:02:06]} 22. Bc7 {[%clk 0:02:25]}  Bd7 {[%clk 0:01:53]} 23. c4 {[%clk 0:02:19]}  e6 {[%clk 0:01:36]} 24. Bb6 {[%clk 0:02:01]}  Re7 {[%clk 0:01:35]} 25. cxd5 {[%clk 0:02:02]}  exd5 {[%clk 0:01:34]} 26. Nd2 {[%clk 0:02:02]}  f5 {[%clk 0:01:32]} 27. Nf3 {[%clk 0:01:39]}  Kf7 {[%clk 0:01:24]} 28. Nd3 {[%clk 0:01:34]}  Rce8 {[%clk 0:01:10]} 29. Nfe5+ {[%clk 0:01:30]}  Bxe5 {[%clk 0:01:10]} 30. Nxe5+ {[%clk 0:01:30]}  Rxe5 {[%clk 0:01:10]} 31. dxe5 {[%clk 0:01:28]}  Ke6 {[%clk 0:01:10]} 32. Ra7 {[%clk 0:01:22]}  Nc3 {[%clk 0:01:08]} 33. a3 {[%clk 0:01:13]}  d4 {[%clk 0:01:05]} 34. Ra1 {[%clk 0:01:02]}  Rb8 {[%clk 0:00:51]} 35. Kf1 {[%clk 0:00:55]}  d3 {[%clk 0:00:47]} 36. Ke1 {[%clk 0:00:56]}  Nb5 {[%clk 0:00:22]} 37. Rxa4 {[%clk 0:00:55]}  Kxe5 {[%clk 0:00:22]} 38. Kd2 {[%clk 0:00:55]}  Be6 {[%clk 0:00:22]} 39. Rh4 {[%clk 0:00:44]}  Rb7 {[%clk 0:00:19]} 40. a4 {[%clk 0:00:40]}  Nd4 {[%clk 0:00:19]} 41. Re1+ {[%clk 0:00:40]}  Kd5 {[%clk 0:00:19]} 42. Rxd4+ {[%clk 0:00:40]}  Kxd4 {[%clk 0:00:19]} 43. Rxe6 {[%clk 0:00:41]} 1-0


[Site "https://www.chess.com"]

[Event "Titled Tuesday Blitz June 28 Late 2022"]
[White "Yaksin, Oleg"]
[Black "Sarkar, Justin"]
[WhiteFideId "24105880"]
[BlackFideId "2010011"]
[WhiteElo "2256"]
[BlackElo "2020"]
[Result "1-0"]
[Round "02"]
[TimeControl "180+1"]
[Date "2022.06.29"]
[WhiteClock "0:00:09"]
[BlackClock "0:00:01"]

1. d4 {[%clk 0:03:00]}  Nf6 {[%clk 0:02:53]} 2. c4 {[%clk 0:03:01]}  e6 {[%clk 0:02:53]} 3. Nc3 {[%clk 0:03:01]}  Bb4 {[%clk 0:02:52]} 4. e3 {[%clk 0:03:02]}  O-O {[%clk 0:02:49]} 5. Ne2 {[%clk 0:03:02]}  c6 {[%clk 0:02:42]} 6. a3 {[%clk 0:03:01]}  Ba5 {[%clk 0:02:42]} 7. c5 {[%clk 0:03:02]}  d6 {[%clk 0:02:35]} 8. cxd6 {[%clk 0:02:59]}  Qxd6 {[%clk 0:02:29]} 9. b4 {[%clk 0:02:59]}  Bc7 {[%clk 0:02:27]} 10. g3 {[%clk 0:03:00]}  e5 {[%clk 0:02:23]} 11. Bg2 {[%clk 0:02:59]}  Be6 {[%clk 0:02:03]} 12. O-O {[%clk 0:02:54]}  Nbd7 {[%clk 0:02:01]} 13. b5 {[%clk 0:02:52]}  Bc4 {[%clk 0:01:29]} 14. bxc6 {[%clk 0:02:47]}  bxc6 {[%clk 0:01:28]} 15. Qa4 {[%clk 0:02:30]}  Nb6 {[%clk 0:01:28]} 16. Qxc6 {[%clk 0:02:26]}  Rac8 {[%clk 0:00:53]} 17. Qxd6 {[%clk 0:02:21]}  Bxd6 {[%clk 0:00:54]} 18. Re1 {[%clk 0:02:06]}  exd4 {[%clk 0:00:41]} 19. Nxd4 {[%clk 0:01:58]}  Be5 {[%clk 0:00:40]} 20. Ne4 {[%clk 0:01:48]}  Nxe4 {[%clk 0:00:26]} 21. Bxe4 {[%clk 0:01:49]}  Bxd4 {[%clk 0:00:23]} 22. exd4 {[%clk 0:01:48]}  Bd5 {[%clk 0:00:22]} 23. Bf5 {[%clk 0:01:41]}  Rc4 {[%clk 0:00:20]} 24. Be3 {[%clk 0:01:37]}  g6 {[%clk 0:00:16]} 25. Bg4 {[%clk 0:01:32]}  Na4 {[%clk 0:00:09]} 26. Rac1 {[%clk 0:01:14]}  Rb8 {[%clk 0:00:08]} 27. Rxc4 {[%clk 0:01:11]}  Bxc4 {[%clk 0:00:08]} 28. Bd7 {[%clk 0:00:51]}  Nb6 {[%clk 0:00:05]} 29. Bc6 {[%clk 0:00:49]}  Bd5 {[%clk 0:00:05]} 30. Bf4 {[%clk 0:00:45]}  Rc8 {[%clk 0:00:03]} 31. Bb5 {[%clk 0:00:42]}  Bc4 {[%clk 0:00:03]} 32. Re8+ {[%clk 0:00:34]}  Rxe8 {[%clk 0:00:02]} 33. Bxe8 {[%clk 0:00:35]}  Nd5 {[%clk 0:00:02]} 34. Bd2 {[%clk 0:00:33]}  Kf8 {[%clk 0:00:01]} 35. Ba4 {[%clk 0:00:32]}  Ke7 {[%clk 0:00:02]} 36. f3 {[%clk 0:00:29]}  Kd6 {[%clk 0:00:02]} 37. Kf2 {[%clk 0:00:26]}  f5 {[%clk 0:00:02]} 38. Bc2 {[%clk 0:00:26]}  Ba2 {[%clk 0:00:01]} 39. h4 {[%clk 0:00:23]}  Kc6 {[%clk 0:00:01]} 40. g4 {[%clk 0:00:22]}  fxg4 {[%clk 0:00:01]} 41. fxg4 {[%clk 0:00:21]}  Kd6 {[%clk 0:00:02]} 42. h5 {[%clk 0:00:18]}  gxh5 {[%clk 0:00:02]} 43. gxh5 {[%clk 0:00:19]}  Nf6 {[%clk 0:00:01]} 44. h6 {[%clk 0:00:14]}  Ke6 {[%clk 0:00:01]} 45. Kg3 {[%clk 0:00:11]}  Kf7 {[%clk 0:00:01]} 46. Kh4 {[%clk 0:00:10]}  Bd5 {[%clk 0:00:01]} 47. Kg5 {[%clk 0:00:09]}  Ne4+ {[%clk 0:00:01]} 48. Bxe4 {[%clk 0:00:09]}  Bxe4 {[%clk 0:00:01]} 49. Bf4 {[%clk 0:00:09]}  Bd5 {[%clk 0:00:01]} 50. Kf5 {[%clk 0:00:09]}  Bb3 {[%clk 0:00:01]} 51. Ke5 {[%clk 0:00:10]}  Ke7 {[%clk 0:00:01]} 52. Bg5+ {[%clk 0:00:10]}  Kd7 {[%clk 0:00:01]} 53. Kf6 {[%clk 0:00:10]}  a6 {[%clk 0:00:01]} 54. Kg7 {[%clk 0:00:10]}  Bc2 {[%clk 0:00:01]} 55. Bf4 {[%clk 0:00:10]}  a5 {[%clk 0:00:01]} 56. Be5 {[%clk 0:00:10]}  a4 {[%clk 0:00:01]} 57. Kf6 {[%clk 0:00:11]}  Bb1 {[%clk 0:00:01]} 58. Bg3 {[%clk 0:00:09]}  Bc2 {[%clk 0:00:01]} 59. d5 {[%clk 0:00:09]}  Bb1 {[%clk 0:00:01]} 60. Ke5 {[%clk 0:00:09]}  Bc2 {[%clk 0:00:01]} 61. Kd4 {[%clk 0:00:09]} 1-0


[Site "https://www.chess.com"]

[Event "Titled Tuesday Blitz June 28 Late 2022"]
[White "Yeshchenko, Uliana"]
[Black "Kulon, Klaudia"]
[WhiteFideId "14187272"]
[BlackFideId "1131044"]
[WhiteElo "1890"]
[BlackElo "2281"]
[Result "0-1"]
[Round "02"]
[TimeControl "180+1"]
[Date "2022.06.29"]
[WhiteClock "0:00:44"]
[BlackClock "0:00:06"]

1. d4 {[%clk 0:03:00]}  Nf6 {[%clk 0:02:59]} 2. c4 {[%clk 0:03:01]}  g6 {[%clk 0:02:58]} 3. Nc3 {[%clk 0:03:01]}  d5 {[%clk 0:02:59]} 4. cxd5 {[%clk 0:03:02]}  Nxd5 {[%clk 0:03:00]} 5. Na4 {[%clk 0:03:02]}  Bg7 {[%clk 0:02:57]} 6. e4 {[%clk 0:02:56]}  Nb6 {[%clk 0:02:56]} 7. Nf3 {[%clk 0:02:56]}  O-O {[%clk 0:02:55]} 8. h3 {[%clk 0:02:56]}  Nc6 {[%clk 0:02:35]} 9. Be3 {[%clk 0:02:55]}  Qd6 {[%clk 0:01:41]} 10. Nc3 {[%clk 0:02:51]}  Rd8 {[%clk 0:01:38]} 11. e5 {[%clk 0:02:37]}  Qb4 {[%clk 0:01:23]} 12. Qc2 {[%clk 0:02:18]}  Bf5 {[%clk 0:01:20]} 13. Qb3 {[%clk 0:02:14]}  Qxb3 {[%clk 0:01:16]} 14. axb3 {[%clk 0:02:15]}  Nb4 {[%clk 0:01:14]} 15. Rc1 {[%clk 0:01:57]}  c6 {[%clk 0:00:48]} 16. g4 {[%clk 0:01:56]}  Bc2 {[%clk 0:00:45]} 17. Bc4 {[%clk 0:01:41]}  Nxc4 {[%clk 0:00:43]} 18. bxc4 {[%clk 0:01:40]}  Bb3 {[%clk 0:00:37]} 19. O-O {[%clk 0:01:29]}  Bxc4 {[%clk 0:00:36]} 20. Rfd1 {[%clk 0:01:29]}  a5 {[%clk 0:00:32]} 21. Kg2 {[%clk 0:01:27]}  b5 {[%clk 0:00:29]} 22. Nd2 {[%clk 0:01:20]}  Be6 {[%clk 0:00:27]} 23. Nde4 {[%clk 0:01:19]}  a4 {[%clk 0:00:22]} 24. Nc5 {[%clk 0:01:18]}  Bc4 {[%clk 0:00:23]} 25. N3e4 {[%clk 0:01:15]}  Bd5 {[%clk 0:00:22]} 26. f3 {[%clk 0:01:13]}  f6 {[%clk 0:00:22]} 27. exf6 {[%clk 0:01:12]}  exf6 {[%clk 0:00:23]} 28. Bd2 {[%clk 0:01:07]}  Na6 {[%clk 0:00:18]} 29. Nb7 {[%clk 0:01:03]}  f5 {[%clk 0:00:16]} 30. Nxd8 {[%clk 0:00:58]}  fxe4 {[%clk 0:00:15]} 31. Nb7 {[%clk 0:00:57]}  exf3+ {[%clk 0:00:15]} 32. Kg3 {[%clk 0:00:57]}  Re8 {[%clk 0:00:11]} 33. Bf4 {[%clk 0:00:56]}  Re2 {[%clk 0:00:11]} 34. Rd2 {[%clk 0:00:55]}  Nb4 {[%clk 0:00:10]} 35. Rxe2 {[%clk 0:00:53]}  fxe2 {[%clk 0:00:11]} 36. Re1 {[%clk 0:00:53]}  Nd3 {[%clk 0:00:11]} 37. Rxe2 {[%clk 0:00:53]}  Bxd4 {[%clk 0:00:10]} 38. Rd2 {[%clk 0:00:52]}  Bc4 {[%clk 0:00:08]} 39. Nd6 {[%clk 0:00:48]}  Kf8 {[%clk 0:00:05]} 40. Nxc4 {[%clk 0:00:48]}  bxc4 {[%clk 0:00:06]} 41. h4 {[%clk 0:00:47]}  Bxb2 {[%clk 0:00:05]} 42. h5 {[%clk 0:00:46]}  a3 {[%clk 0:00:05]} 43. Rd1 {[%clk 0:00:44]}  a2 {[%clk 0:00:04]} 44. hxg6 {[%clk 0:00:45]}  hxg6 {[%clk 0:00:04]} 45. Ra1 {[%clk 0:00:45]}  Bxa1 {[%clk 0:00:04]} 46. Bd6+ {[%clk 0:00:44]}  Kf7 {[%clk 0:00:04]} 47. Ba3 {[%clk 0:00:45]}  Be5+ {[%clk 0:00:05]} 48. Kh4 {[%clk 0:00:45]}  a1=Q {[%clk 0:00:05]} 49. Bc5 {[%clk 0:00:44]}  Qh1+ {[%clk 0:00:05]} 50. Kg5 {[%clk 0:00:44]}  Bf6# {[%clk 0:00:06]} 0-1


[Site "https://www.chess.com"]

[Event "Titled Tuesday Blitz June 28 Late 2022"]
[White "Yoo, Christopher Woojin"]
[Black "Florescu, Codrut-Constantin"]
[WhiteFideId "30909694"]
[BlackFideId "1202200"]
[WhiteElo "2105"]
[BlackElo "2191"]
[Result "1/2-1/2"]
[Round "02"]
[TimeControl "180+1"]
[Date "2022.06.28"]
[WhiteClock "0:00:03"]
[BlackClock "0:00:05"]

1. e4 {[%clk 0:03:00]}  c5 {[%clk 0:02:59]} 2. Nf3 {[%clk 0:03:01]}  e6 {[%clk 0:02:59]} 3. b3 {[%clk 0:03:02]}  a6 {[%clk 0:02:59]} 4. Bb2 {[%clk 0:03:02]}  Nc6 {[%clk 0:02:59]} 5. d4 {[%clk 0:02:56]}  cxd4 {[%clk 0:03:00]} 6. Nxd4 {[%clk 0:02:57]}  Qf6 {[%clk 0:02:58]} 7. c3 {[%clk 0:02:25]}  Bc5 {[%clk 0:02:58]} 8. g3 {[%clk 0:02:24]}  e5 {[%clk 0:02:56]} 9. Nf5 {[%clk 0:02:16]}  d6 {[%clk 0:02:43]} 10. Bg2 {[%clk 0:02:12]}  g6 {[%clk 0:02:40]} 11. Ne3 {[%clk 0:02:12]}  Bxe3 {[%clk 0:02:40]} 12. fxe3 {[%clk 0:02:12]}  Nge7 {[%clk 0:02:37]} 13. c4 {[%clk 0:02:11]}  O-O {[%clk 0:02:36]} 14. Nc3 {[%clk 0:02:11]}  b5 {[%clk 0:02:30]} 15. Nd5 {[%clk 0:01:34]}  Nxd5 {[%clk 0:02:23]} 16. cxd5 {[%clk 0:01:30]}  Nd8 {[%clk 0:02:02]} 17. Rc1 {[%clk 0:01:26]}  b4 {[%clk 0:01:53]} 18. Qd2 {[%clk 0:01:26]}  a5 {[%clk 0:01:51]} 19. Qf2 {[%clk 0:01:26]}  Qe7 {[%clk 0:01:35]} 20. O-O {[%clk 0:01:26]}  Ba6 {[%clk 0:01:34]} 21. Rfe1 {[%clk 0:01:26]}  Nb7 {[%clk 0:01:34]} 22. Bf1 {[%clk 0:01:08]}  Bxf1 {[%clk 0:01:27]} 23. Rxf1 {[%clk 0:00:55]}  Nc5 {[%clk 0:01:27]} 24. Rxc5 {[%clk 0:00:33]}  dxc5 {[%clk 0:01:26]} 25. Qf6 {[%clk 0:00:33]}  Qxf6 {[%clk 0:01:25]} 26. Rxf6 {[%clk 0:00:34]}  a4 {[%clk 0:01:17]} 27. Bxe5 {[%clk 0:00:34]}  axb3 {[%clk 0:01:17]} 28. axb3 {[%clk 0:00:34]}  Ra2 {[%clk 0:01:12]} 29. Rf2 {[%clk 0:00:31]}  Rxf2 {[%clk 0:01:08]} 30. Kxf2 {[%clk 0:00:32]}  Ra8 {[%clk 0:01:00]} 31. Ke2 {[%clk 0:00:21]}  Ra3 {[%clk 0:00:55]} 32. Bd6 {[%clk 0:00:21]}  c4 {[%clk 0:00:48]} 33. bxc4 {[%clk 0:00:20]}  Ra2+ {[%clk 0:00:47]} 34. Kd3 {[%clk 0:00:20]}  b3 {[%clk 0:00:47]} 35. Be5 {[%clk 0:00:11]}  Kf8 {[%clk 0:00:45]} 36. Kc3 {[%clk 0:00:07]}  b2 {[%clk 0:00:44]} 37. Kc2 {[%clk 0:00:07]}  Ra4 {[%clk 0:00:42]} 38. Bxb2 {[%clk 0:00:04]}  Rxc4+ {[%clk 0:00:41]} 39. Kd3 {[%clk 0:00:05]}  Ra4 {[%clk 0:00:41]} 40. e5 {[%clk 0:00:04]}  Ke7 {[%clk 0:00:40]} 41. e4 {[%clk 0:00:04]}  Ra2 {[%clk 0:00:39]} 42. Kc3 {[%clk 0:00:04]}  Ra4 {[%clk 0:00:38]} 43. Kd3 {[%clk 0:00:05]}  Kd7 {[%clk 0:00:38]} 44. Bc3 {[%clk 0:00:03]}  Ra2 {[%clk 0:00:37]} 45. Bd2 {[%clk 0:00:03]}  h5 {[%clk 0:00:37]} 46. h4 {[%clk 0:00:02]}  Ra1 {[%clk 0:00:35]} 47. Ke3 {[%clk 0:00:01]}  Ra3+ {[%clk 0:00:31]} 48. Kf4 {[%clk 0:00:02]}  Rd3 {[%clk 0:00:28]} 49. Be1 {[%clk 0:00:02]}  Rd1 {[%clk 0:00:27]} 50. Bf2 {[%clk 0:00:03]}  Rf1 {[%clk 0:00:24]} 51. Kf3 {[%clk 0:00:03]}  Rb1 {[%clk 0:00:18]} 52. Be3 {[%clk 0:00:03]}  Rf1+ {[%clk 0:00:17]} 53. Ke2 {[%clk 0:00:03]}  Rb1 {[%clk 0:00:17]} 54. Bd4 {[%clk 0:00:02]}  Rb3 {[%clk 0:00:16]} 55. Be3 {[%clk 0:00:02]}  Rb1 {[%clk 0:00:16]} 56. Kf3 {[%clk 0:00:02]}  Rf1+ {[%clk 0:00:16]} 57. Kg2 {[%clk 0:00:02]}  Rb1 {[%clk 0:00:15]} 58. Kf2 {[%clk 0:00:03]}  Rb2+ {[%clk 0:00:14]} 59. Kf3 {[%clk 0:00:03]}  Rb3 {[%clk 0:00:15]} 60. Kf4 {[%clk 0:00:03]}  Rd3 {[%clk 0:00:14]} 61. Bc5 {[%clk 0:00:02]}  Rc3 {[%clk 0:00:14]} 62. Bd6 {[%clk 0:00:01]}  Rd3 {[%clk 0:00:14]} 63. Bc5 {[%clk 0:00:01]}  Rc3 {[%clk 0:00:13]} 64. Bd4 {[%clk 0:00:02]}  Rd3 {[%clk 0:00:13]} 65. Bb6 {[%clk 0:00:02]}  Rb3 {[%clk 0:00:13]} 66. Ba5 {[%clk 0:00:02]}  Rb1 {[%clk 0:00:12]} 67. Bc3 {[%clk 0:00:02]}  Rf1+ {[%clk 0:00:11]} 68. Ke3 {[%clk 0:00:03]}  Rg1 {[%clk 0:00:11]} 69. Kf3 {[%clk 0:00:03]}  Rb1 {[%clk 0:00:09]} 70. Bd2 {[%clk 0:00:02]}  Rb3+ {[%clk 0:00:08]} 71. Kf4 {[%clk 0:00:03]}  Rd3 {[%clk 0:00:07]} 72. Bc1 {[%clk 0:00:03]}  Rc3 {[%clk 0:00:06]} 73. Bb2 {[%clk 0:00:03]}  Rd3 {[%clk 0:00:06]} 74. Bc1 {[%clk 0:00:02]}  Rc3 {[%clk 0:00:06]} 75. Be3 {[%clk 0:00:03]}  Rd3 {[%clk 0:00:07]} 76. Bg1 {[%clk 0:00:02]}  Rd1 {[%clk 0:00:07]} 77. Bc5 {[%clk 0:00:02]}  Rf1+ {[%clk 0:00:07]} 78. Ke3 {[%clk 0:00:02]}  Rb1 {[%clk 0:00:07]} 79. Kf3 {[%clk 0:00:02]}  Rb3+ {[%clk 0:00:07]} 80. Kf4 {[%clk 0:00:03]}  Rc3 {[%clk 0:00:05]} 1/2-1/2


[Site "https://www.chess.com"]

[Event "Titled Tuesday Blitz June 28 Late 2022"]
[White "Yurasova, Daria"]
[Black "Rostovtsev, Dmitry"]
[WhiteFideId "34146919"]
[BlackFideId "34278320"]
[WhiteElo "2021"]
[BlackElo "2311"]
[Result "0-1"]
[Round "02"]
[TimeControl "180+1"]
[Date "2022.06.29"]
[WhiteClock "0:00:13"]
[BlackClock "0:00:38"]

1. e4 {[%clk 0:03:00]}  d5 {[%clk 0:02:58]} 2. exd5 {[%clk 0:02:59]}  Qxd5 {[%clk 0:02:59]} 3. Nc3 {[%clk 0:02:59]}  Qd6 {[%clk 0:02:59]} 4. d4 {[%clk 0:02:59]}  Nf6 {[%clk 0:02:59]} 5. Nf3 {[%clk 0:03:00]}  a6 {[%clk 0:02:59]} 6. Ne5 {[%clk 0:03:00]}  Nc6 {[%clk 0:02:59]} 7. Nxc6 {[%clk 0:02:35]}  Qxc6 {[%clk 0:03:00]} 8. Be3 {[%clk 0:02:34]}  Bg4 {[%clk 0:02:58]} 9. f3 {[%clk 0:02:32]}  Bf5 {[%clk 0:02:58]} 10. Qd2 {[%clk 0:02:32]}  e6 {[%clk 0:02:58]} 11. O-O-O {[%clk 0:02:32]}  Bb4 {[%clk 0:02:57]} 12. Bd3 {[%clk 0:02:30]}  Nd5 {[%clk 0:02:32]} 13. Bxf5 {[%clk 0:02:13]}  Nxc3 {[%clk 0:02:31]} 14. Be4 {[%clk 0:01:33]}  Qa4 {[%clk 0:02:08]} 15. Qd3 {[%clk 0:00:59]}  Nxd1 {[%clk 0:01:47]} 16. Rxd1 {[%clk 0:00:53]}  Qxa2 {[%clk 0:01:16]} 17. c3 {[%clk 0:00:52]}  Qa1+ {[%clk 0:01:16]} 18. Kc2 {[%clk 0:00:52]}  Qa4+ {[%clk 0:01:16]} 19. Kc1 {[%clk 0:00:52]}  Bd6 {[%clk 0:01:13]} 20. d5 {[%clk 0:00:33]}  e5 {[%clk 0:01:02]} 21. f4 {[%clk 0:00:32]}  O-O-O {[%clk 0:00:47]} 22. Ba7 {[%clk 0:00:23]}  b6 {[%clk 0:00:42]} 23. fxe5 {[%clk 0:00:19]}  Bxe5 {[%clk 0:00:43]} 24. d6 {[%clk 0:00:20]}  Rxd6 {[%clk 0:00:43]} 25. Bf5+ {[%clk 0:00:13]}  Kb7 {[%clk 0:00:40]} 26. Qe3 {[%clk 0:00:13]}  Qxd1# {[%clk 0:00:38]} 0-1


[Site "https://www.chess.com"]